Cogmind - Beta 14 @@@ ROGUE MODE // 2024.08.13 @ 04:18:44 Player: Cereal Killer Result: Destroyed by Y-45 Defender with Beam Rifle Performance ------------- Evolutions (2) 1000 Regions Visited (10) 2000 Robots Destroyed (111) 555 Value Destroyed (5613) 5613 Prototype IDs (32) 640 Alien Tech Used (0) 0 Bonus (2442) 2442 TOTAL SCORE: 12250 Bonus ------- High Alert Combat Kills 1230 Follower Combat Kills 318 Entered Garrisons 600 Aligned with FarCom 300 Friendly Fire -6 Cogmind --------- Core Integrity 0/550 Matter 157/300 Energy 290/290 System Corruption 0% Temperature Cool (9) Movement Rolling (145) Ox3 Location -8/Garrison Parts ------- > --- POWER (1) -------- Reinforced Deuterium Engine > --- PROPULSION (2) --- Armored Huge Wheel > --- UTILITY (5) ------ Improved Heat Sink High-capacity Storage Unit Advanced Targeting Computer Hardened Heavy Armor Plating > --- WEAPON (3) ------- Flak Cannon Heavy Missile Launcher Great Maul > --- INVENTORY (20) --- Light Nuclear Core Light Nuclear Core Wheel Compact Wheel Improved Heat Sink High-capacity Battery (250) Large Matter Pod (0) Large Matter Pod (0) Advanced Terrain Scan Processor Weapon Cycler Advanced ECM Suite System Restoration Module System Restoration Module PSU Rigger Flak Cannon Flak Cannon Flak Cannon Improved Datajack Plasma Cutter Peak State ------------ > --- POWER ------------ Deuterium Engine > --- PROPULSION ------- Armored Huge Wheel > --- UTILITY ---------- Improved Heat Sink High-capacity Storage Unit Advanced Targeting Computer Improved Light Armor Plating PSU Rigger > --- WEAPON ----------- Advanced Beam Rifle Advanced Beam Rifle Advanced Beam Rifle > --- INVENTORY -------- Light Nuclear Core Light Nuclear Core Light Nuclear Core Compact Wheel Armored Huge Wheel Improved Heat Sink High-capacity Battery Large Matter Pod Large Matter Pod Advanced Terrain Scan Processor Advanced ECM Suite Improved Light Armor Plating Corruption Screen Gauss Rifle Heavy Missile Launcher Improved Datajack Plasma Cutter Great Maul [Rating: 46] Favorites ----------- Power Ion Engine Engine Ion Engine Power Core Light Nuclear Core Propulsion Wheel Wheel Wheel Utility High-capacity Storage Unit Device Improved Heat Sink Storage High-capacity Storage Unit Processor Advanced Targeting Computer Protection Improved Power Shielding Weapon Advanced Beam Rifle Energy Gun Advanced Beam Rifle Energy Cannon Beam Cannon Ballistic Gun Flak Gun Ballistic Cannon Flak Cannon Launcher Heavy Missile Launcher Impact Weapon Great Maul Special Melee Weapon Improved Datajack Build | -11 -10 -10 -10 -9 -8 -8 -8 -8 -8 -8 ------- Run | Yrd Mat Min Exi Min Mat Gar Mat Gar Mat Gar Slots Evolved 4 | . . . . . 4 . . . . . Power . | . . . . . . . . . . . Propulsion . | . . . . . . . . . . . Utility 3 | . . . . . 3 . . . . . Weapon 1 | . . . . . 1 . . . . . Parts Attached 99 | 6 2 1 2 2 6 20 49 6 3 2 Power 6 | 1 . . 1 . . 1 3 . . . Engine 5 | 1 . . 1 . . 1 2 . . . Core 1 | . . . . . . . 1 . . . Reactor . | . . . . . . . . . . . Propulsion 8 | 2 . . . . . 3 3 . . . Treads . | . . . . . . . . . . . Leg . | . . . . . . . . . . . Wheel 8 | 2 . . . . . 3 3 . . . Hover . | . . . . . . . . . . . Flight . | . . . . . . . . . . . Utility 45 | 1 . . 1 1 3 13 23 1 2 . Device 26 | . . . . 1 1 10 12 . 2 . Storage 3 | 1 . . 1 . . . 1 . . . Processor 4 | . . . . . . 1 3 . . . Hackware . | . . . . . . . . . . . Protection 12 | . . . . . 2 2 7 1 . . Artifact . | . . . . . . . . . . . Weapon 40 | 2 2 1 . 1 3 3 20 5 1 2 Energy Gun 11 | 2 . . . . . . 9 . . . Energy Cannon 3 | . 1 . . . 2 . . . . . Ballistic Gun 4 | . 1 . . 1 . 1 1 . . . Ballistic Cannon 10 | . . 1 . . . 1 5 2 1 . Launcher 2 | . . . . . . . . 1 . 1 Special Weapon . | . . . . . . . . . . . Impact Weapon 9 | . . . . . 1 1 4 2 . 1 Slashing Weapon . | . . . . . . . . . . . Piercing Weapon . | . . . . . . . . . . . Special Melee Weapon 1 | . . . . . . . 1 . . . Unidentified Prototypes . | . . . . . . . . . . . Parts Lost 24 | . . . . . . 5 18 . 1 . Power 3 | . . . . . . . 3 . . . Propulsion 4 | . . . . . . 2 2 . . . Utility 9 | . . . . . . 2 6 . 1 . Weapon 8 | . . . . . . 1 7 . . . Highest Loss Streak 8 | . . . . . . 3 8 . 1 . To Critical Strikes . | . . . . . . . . . . . Average Slot Usage (%) 89 | . 85 85 85 94 87 97 91 82 79 81 Engine 9 | . 14 14 14 14 9 9 7 9 9 9 Wheel 15 | . 28 28 28 28 18 17 11 9 9 9 Device 10 | . . . . 9 16 11 13 9 7 9 Storage 9 | . 14 14 14 14 9 9 9 9 9 9 Processor 7 | . . . . . . 6 11 10 9 9 Protection 9 | . . . . . 9 16 10 9 9 9 Energy Gun 7 | . 3 . . . . . 18 . . . Energy Cannon 5 | . 12 14 14 14 16 12 1 . . . Ballistic Gun 4 | . 12 13 . 13 9 8 1 . . . Ballistic Cannon 7 | . . 1 14 . . 5 2 17 20 17 Impact Weapon 2 | . . . . . . . 1 8 7 9 Peak Build Rating 46 | 6 6 7 9 14 25 35 46 41 43 42 Average Rating 30 | 3 6 6 7 13 21 28 36 39 41 41 On Entrance 19 | . 6 6 7 8 14 25 29 38 40 41 Naked Turns . | . . . . . . . . . . . Heaviest Build 94 | 13 15 16 51 54 66 70 75 94 94 93 Greatest Support 28 | 20 20 20 20 20 20 28 28 28 28 28 Greatest Overweight (x) 4 | . . . 2 2 3 4 3 3 3 3 Average Overweight (x) 1 | . . . 1 2 2 2 2 2 3 3 Largest Inventory Capacity 20 | 8 8 8 20 20 20 20 20 20 20 20 Average Capacity 18 | 6 8 8 15 20 20 20 20 20 20 20 Most Carried 20 | 5 8 8 11 17 19 20 20 19 20 19 Average Carried 17 | 2 7 8 8 15 16 19 19 17 19 19 Final Capacity 20 | 8 8 8 20 20 20 20 20 20 20 20 Final Carried 20 | 4 8 8 11 16 19 20 19 17 19 19 Class Distribution -------------------- 44% | Mutant 30% | Skirmisher 16% | Scavenger-Tank 4% | Scavenger-Skirmisher 3% | Tank Dominant Class ---------------- Mutant | -10/Materials Mutant | -10/Mines Mutant | -10/Exiles Mutant | -9/Mines Skirmisher | -8/Materials Scavenger-Tank | -8/Garrison Skirmisher | -8/Materials Mutant | -8/Garrison Mutant | -8/Materials Mutant | -8/Garrison Resources | -11 -10 -10 -10 -9 -8 -8 -8 -8 -8 -8 ----------- Run | Yrd Mat Min Exi Min Mat Gar Mat Gar Mat Gar Matter Collected 2811 | 237 259 21 30 50 79 717 848 59 456 55 Remotely . | . . . . . . . . . . . Salvage Created 3778 | . 337 44 . . 72 964 1892 77 337 55 Parts 206 | . 23 5 . . 2 49 88 12 23 4 Haulers Intercepted 4 | . 1 . . . 1 . 2 . . . Recyclers Shooed . | . . . . . . . . . . . Parts Field Recycled . | . . . . . . . . . . . Retrieved Matter . | . . . . . . . . . . . Parts Self-Destructed . | . . . . . . . . . . . Prevented . | . . . . . . . . . . . Kills | -11 -10 -10 -10 -9 -8 -8 -8 -8 -8 -8 ------- Run | Yrd Mat Min Exi Min Mat Gar Mat Gar Mat Gar Combat Hostiles Destroyed 98 | . 7 3 . . . 26 41 8 11 2 Melee 3 | . . . . . . . 3 . . . Guns 37 | . 2 . . . . 11 24 . . . Cannons 50 | . 5 3 . . . 14 12 3 11 2 AOE 5 | . . . . . . . . 5 . . Classes Destroyed 11 | . 5 . . . . 2 4 . . . Worker 2 | . . . . . . . 1 . 1 . Hauler 4 | . 1 . . . 1 . 2 . . . Recycler 1 | . 1 . . . . . . . . . Watcher 6 | . 1 . . . 1 . 2 . 2 . Swarmer 31 | . 3 3 . . . 10 3 6 5 1 Grunt 44 | . 4 . . . . 12 23 2 3 . Brawler 3 | . . . . . . 1 1 . 1 . Duelist 6 | . . . . . . . 5 . 1 . Sentry 10 | . . . . . . . 8 . 1 1 Programmer 3 | . . . . . . 3 . . . . Heavy 1 | . . . . . . . 1 . . . Best Kill Streak 7 | . 4 3 . . 1 4 7 3 4 2 Combat Bots Only 7 | . 4 3 . . . 4 7 3 3 2 Max Kills in Single Turn 3 | . 1 1 . . 1 1 1 3 2 1 Gunslinging . | . . . . . . . . . . . Exploded 3 | . . . . . . . . 3 . . Melee 1 | . . . . . . . 1 . . . Uniques/NPCs Destroyed . | . . . . . . . . . . . Combat | -11 -10 -10 -10 -9 -8 -8 -8 -8 -8 -8 -------- Run | Yrd Mat Min Exi Min Mat Gar Mat Gar Mat Gar Hostile Shots Fired 382 | . 22 20 . . 2 77 218 11 26 6 Missed 107 | . 8 5 . . 2 19 60 4 7 2 Damage Taken 4141 | . 119 121 . . . 799 2708 69 220 105 Core 609 | . 25 34 . . . 64 435 . 29 22 Absorbed by Shields . | . . . . . . . . . . . Redirected to Shielding 30 | . . . . . . 24 6 . . . Ignored by Resistances 32 | . . . . . . . 32 . . . Core Remaining (%) 88 | 100 . . . 76 . . . . . . Volleys Fired 245 | . 22 7 . . 8 76 98 8 22 4 Largest 3 | . 2 2 . . 3 3 3 2 3 2 Hottest 183 | . 80 80 . . 163 163 183 88 132 88 Shots Fired 635 | . 44 14 . . 24 218 258 13 58 6 Gun 295 | . 22 7 . . 8 72 186 . . . Cannon 336 | . 22 7 . . 16 146 72 10 58 5 Launcher 4 | . . . . . . . . 3 . 1 Special . | . . . . . . . . . . . Kinetic 288 | . 22 7 . . 8 104 74 10 58 5 Thermal 343 | . 22 7 . . 16 114 184 . . . Explosive 4 | . . . . . . . . 3 . 1 Electromagnetic . | . . . . . . . . . . . Robot Hit Streak 24 | . 11 7 . . 3 24 21 5 9 5 Robot Miss Streak 12 | . 3 4 . . 5 6 6 5 12 5 Penetration Max . | . . . . . . . . . . . Secondary Targets 4 | . . . . . . . 4 . . . Max Gunslinging Chain 1 | . . . . . . . 1 . . . Shots Hit Robots 444 | . 25 6 . . 21 133 200 9 46 4 Core Hits 318 | . 14 3 . . 6 114 111 15 49 6 Critical Kills 2 | . . . . . . 1 . . 1 . Critical Parts Destroyed 4 | . . . . . . . 3 . 1 . Critical Strikes 14 | . . . . . . 2 10 . 2 . Burn 6 | . . . . . . . 6 . . . Meltdown 1 | . . . . . . 1 . . . . Blast 2 | . . . . . . 1 1 . . . Smash 5 | . . . . . . . 3 . 2 . Melee Attacks 41 | . . . . . 3 4 12 11 8 3 Impact 41 | . . . . . 3 4 12 11 8 3 Slashing . | . . . . . . . . . . . Piercing . | . . . . . . . . . . . Sneak Attacks 1 | . . . . . . . 1 . . . Combat Hostiles 1 | . . . . . . . 1 . . . Follow-up Attacks . | . . . . . . . . . . . Damage Inflicted 9381 | . 413 95 . . 377 2648 4063 554 1174 57 Guns 3967 | . 187 39 . . 98 946 2697 . . . Cannons 4314 | . 226 56 . . 279 1702 1031 143 831 46 Explosions 422 | . . . . . . . . 411 . 11 Melee 667 | . . . . . . . 324 . 343 . Ramming 11 | . . . . . . . 11 . . . Kinetic 3605 | . 187 39 . . 98 1181 1080 143 831 46 Thermal 4676 | . 226 56 . . 279 1467 2648 . . . Explosive 422 | . . . . . . . . 411 . 11 Electromagnetic . | . . . . . . . . . . . Impact 667 | . . . . . . . 324 . 343 . Slashing . | . . . . . . . . . . . Piercing . | . . . . . . . . . . . Highest Corruption 2 | . . . . . . 1 1 1 2 . Average Corruption 1 | . . . . . . 1 1 1 1 . Corruption Purged 3 | . . . . . . . . . 3 . Corruption Blocked 1 | . . . . . . . 1 . . . Effects 44 | . . . . . . 7 28 7 2 . Message Errors 10 | . . . . . . 1 8 1 . . Matter Fused 10 | . . . . . . 2 6 2 . . Heat Flow Errors 3 | . . . . . . . 2 1 . . Energy Discharges 9 | . . . . . . 1 6 2 . . Parts Rejected 2 | . . . . . . 1 1 . . . Data Loss (minor) 5 | . . . . . . 1 2 1 1 . Data Loss (major) 1 | . . . . . . . 1 . . . Misfires 3 | . . . . . . . 2 . 1 . Alerts 1 | . . . . . . 1 . . . . Overload Shots . | . . . . . . . . . . . Overflow Damage 352 | . . . . . 10 15 154 19 154 . Projectiles 41 | . . . . . 10 15 16 . . . Explosions 19 | . . . . . . . . 19 . . Melee 292 | . . . . . . . 138 . 154 . Knockbacks 65 | . . . . . . 2 24 8 31 . Impact 1 | . . . . . . . 1 . . . Kinetic 55 | . . . . . . 2 21 8 24 . Secondary 9 | . . . . . . . 2 . 7 . Self-Inflicted Damage 5 | . . . . . . . 5 . . . Shots . | . . . . . . . . . . . Rammed 1 | . . . . . . . 1 . . . Targets Rammed 1 | . . . . . . . 1 . . . Kicked . | . . . . . . . . . . . Crushed . | . . . . . . . . . . . Highest Temperature 255 | . 144 146 . . 54 162 255 161 216 24 Average Temperature 64 | . 51 81 . . 21 46 78 38 78 14 Received Heat Transfer 1842 | . 24 . . . . 324 1368 27 72 27 Effects 1 | . . . . . . . 1 . . . Energy Bleed 1 | . . . . . . . 1 . . . Siege Activations . | . . . . . . . . . . . Robots Corrupted 2 | . . . . . . . 1 . 1 . Combat Hostiles 1 | . . . . . . . 1 . . . Parts Fried 4 | . . . . . . . 2 . 2 . Impact Corruptions 8 | . . . . . . . 4 . 4 . Robots Melted 2 | . . . . . . 1 1 . . . Combat Hostiles 2 | . . . . . . 1 1 . . . Parts Melted 12 | . 3 1 . . 1 2 5 . . . Heat Transferred 8843 | . 481 111 . . 481 2442 5328 . . . Parts Sabotaged . | . . . . . . . . . . . Parts Stolen . | . . . . . . . . . . . Parts Stripped . | . . . . . . . . . . . Power Chain Reactions . | . . . . . . . . . . . Alert | -11 -10 -10 -10 -9 -8 -8 -8 -8 -8 -8 ------- Run | Yrd Mat Min Exi Min Mat Gar Mat Gar Mat Gar Peak Influence 1181 | . 293 184 . . 126 1150 1181 1057 627 541 Initial 767 | . . 114 . . . 81 560 767 514 310 Average 576 | . 160 148 . . 40 632 753 924 477 391 Maximum Alert Level 4 | . 1 . . . . 4 4 3 2 2 Low Security (%) 16 | 100 54 100 . 100 100 3 . . . . Level 1 10 | . 45 . . . . 19 1 . 23 55 Level 2 30 | . . . . . . 35 30 . 76 44 Level 3 40 | . . . . . . 36 65 100 . . Level 4 1 | . . . . . . 6 1 . . . Level 5 . | . . . . . . . . . . . High Security . | . . . . . . . . . . . Max Security . | . . . . . . . . . . . Squads Dispatched 21 | . 2 . . 1 1 . 14 . 3 . Investigation 5 | . 1 . . 1 . . 3 . . . Extermination . | . . . . . . . . . . . Reinforcement 6 | . 1 . . . 1 . 4 . . . Assault 3 | . . . . . . . 3 . . . Garrison 7 | . . . . . . . 4 . 3 . Intercept . | . . . . . . . . . . . Searches Triggered . | . . . . . . . . . . . Construction Impeded . | . . . . . . . . . . . Haulers Reinforced . | . . . . . . . . . . . Active Scanning Responses . | . . . . . . . . . . . Cargo Convoy Interrupts . | . . . . . . . . . . . Stealth | -11 -10 -10 -10 -9 -8 -8 -8 -8 -8 -8 --------- Run | Yrd Mat Min Exi Min Mat Gar Mat Gar Mat Gar Distress Signals 9 | . . . . . 1 . 5 . 3 . Communications Jammed . | . . . . . . . . . . . Distress Signals . | . . . . . . . . . . . Times Spotted 139 | . 8 3 . . 4 27 67 7 17 6 Peak Tracking Total 8 | . 3 3 . . 2 4 8 6 5 4 Tactical Retreats 5 | . . . . . . 1 4 . . . Traps | -11 -10 -10 -10 -9 -8 -8 -8 -8 -8 -8 ------- Run | Yrd Mat Min Exi Min Mat Gar Mat Gar Mat Gar Traps Triggered 7 | . . . . . . 3 1 1 2 . Indirectly . | . . . . . . . . . . . Trap Hack Attempts 4 | . . . . . . . 4 . . . Triggered . | . . . . . . . . . . . Disarmed 1 | . . . . . . . 1 . . . Reprogrammed . | . . . . . . . . . . . Reused . | . . . . . . . . . . . Traps Extracted . | . . . . . . . . . . . Installed . | . . . . . . . . . . . Triggered . | . . . . . . . . . . . Objects Rigged 11 | . . . . . . 7 4 . . . Exploded 9 | . . . . . . 4 5 . . . Machines | -11 -10 -10 -10 -9 -8 -8 -8 -8 -8 -8 ---------- Run | Yrd Mat Min Exi Min Mat Gar Mat Gar Mat Gar Machines Disabled 16 | . 1 . . . . 8 2 1 . 4 Max in Single Turn 2 | . 1 . . . . 2 1 1 . 2 Garrison Relay 8 | . . . . . . 5 . 1 . 2 Phase Generator 2 | . . . . . . 1 . . . 1 Machines Repaired . | . . . . . . . . . . . Machines Dismantled . | . . . . . . . . . . . Machines Sabotaged . | . . . . . . . . . . . Overloaded Fab Kills . | . . . . . . . . . . . Hacking | -11 -10 -10 -10 -9 -8 -8 -8 -8 -8 -8 --------- Run | Yrd Mat Min Exi Min Mat Gar Mat Gar Mat Gar Machines Accessed 29 | . 4 . 2 1 4 1 12 1 3 1 Terminals 20 | . 3 . . . 3 1 9 1 2 1 Fabricators . | . . . . . . . . . . . Repair Stations . | . . . . . . . . . . . Recycling Units 1 | . 1 . . . . . . . . . Scanalyzers 2 | . . . . . . . 2 . . . Garrison Access 3 | . . . . . 1 . 1 . 1 . Total Hacks 81 | . 13 . 5 1 13 3 37 1 7 1 Successful 50 | . 7 . 5 1 7 1 23 1 4 1 Failed 31 | . 6 . . . 6 2 14 . 3 . Catastrophic 3 | . . . . . . 1 2 . . . Database Lockouts . | . . . . . . . . . . . Manual 22 | . 9 . 1 . 4 . 7 . 1 . Terminals 60 | . 12 . . . 10 3 28 1 5 1 Fabricators . | . . . . . . . . . . . Repair Stations . | . . . . . . . . . . . Recycling Units 1 | . 1 . . . . . . . . . Scanalyzers 8 | . . . . . . . 8 . . . Garrison Access 6 | . . . . . 3 . 1 . 2 . Terminal Hacks 31 | . 4 . 5 1 4 1 11 1 3 1 Record 4 | . . . 4 . . . . . . . Robot Analysis 2 | . 2 . . . . . . . . . Prototype ID Bank 5 | . . . . . 2 . 2 . 1 . Open Door 3 | . . . . 1 . 1 . . . 1 Branch Access Points 2 | . 1 . . . 1 . . . . . Emergency Access Points 3 | . 1 . . . . . 1 1 . . Terminal Index 1 | . . . . . . . 1 . . . Alert Level 2 | . . . . . . . 1 . 1 . Unreport Threat 1 | . . . . . . . 1 . . . Locate Traps 4 | . . . . . 1 . 2 . 1 . Dispatch Records 1 | . . . . . . . 1 . . . Recall Reinforcements 1 | . . . . . . . 1 . . . Zone Layout 1 | . . . . . . . 1 . . . Derelict Proto ID Bank 1 | . . . 1 . . . . . . . Fabricator Hacks . | . . . . . . . . . . . Repair Station Hacks . | . . . . . . . . . . . Recycling Unit Hacks . | . . . . . . . . . . . Scanalyzer 8 | . . . . . . . 8 . . . Insert Component 4 | . . . . . . . 4 . . . Analyze 4 | . . . . . . . 4 . . . Garrison Access Hacks 3 | . . . . . 1 . 1 . 1 . Unlock Access 3 | . . . . . 1 . 1 . 1 . Unauthorized Hacks 8 | . 3 . . . 2 . 3 . . . Terminals 7 | . 2 . . . 2 . 3 . . . Botnet 7 | . 2 . . . 2 . 3 . . . Fabricators . | . . . . . . . . . . . Repair Stations . | . . . . . . . . . . . Recycling Units 1 | . 1 . . . . . . . . . Tunnel 1 | . 1 . . . . . . . . . Scanalyzers . | . . . . . . . . . . . Garrison Access . | . . . . . . . . . . . Data Cores Recovered . | . . . . . . . . . . . Used . | . . . . . . . . . . . Hacking Detections 22 | . 3 . . . 4 1 11 1 2 . Full Trace Events 2 | . . . . . 1 1 . . . . Feedback Events . | . . . . . . . . . . . Feedback Blocked . | . . . . . . . . . . . Robot Schematics Acquired . | . . . . . . . . . . . Robots Built . | . . . . . . . . . . . Authchips . | . . . . . . . . . . . Time . | . . . . . . . . . . . Total Robot Build Rating . | . . . . . . . . . . . Part Schematics Acquired 3 | . . . . . . . 3 . . . Parts Built . | . . . . . . . . . . . Authchips . | . . . . . . . . . . . Time . | . . . . . . . . . . . Total Part Build Rating . | . . . . . . . . . . . Parts Repaired . | . . . . . . . . . . . Time . | . . . . . . . . . . . Parts Recycled . | . . . . . . . . . . . Recycled Matter . | . . . . . . . . . . . Retrieved Matter . | . . . . . . . . . . . Retrieved Components . | . . . . . . . . . . . Parts Scanalyzed 3 | . . . . . . . 3 . . . Part Schematics Acquired 3 | . . . . . . . 3 . . . Parts Damaged . | . . . . . . . . . . . Bothacking | -11 -10 -10 -10 -9 -8 -8 -8 -8 -8 -8 ------------ Run | Yrd Mat Min Exi Min Mat Gar Mat Gar Mat Gar Used RIF Installer . | . . . . . . . . . . . Robots Hacked . | . . . . . . . . . . . Non-combat . | . . . . . . . . . . . Combat . | . . . . . . . . . . . Robot Hacks Applied . | . . . . . . . . . . . Relay Couplers Released 33 | . . . . . . 20 . 5 . 8 Machine Destruction 33 | . . . . . . 20 . 5 . 8 Fabnet Peak Effective % . | . . . . . . . . . . . Robots Rewired 3 | . . . . . . 3 . . . . Allies Hacked . | . . . . . . . . . . . Hacks Repelled . | . . . . . . . . . . . Allies | -11 -10 -10 -10 -9 -8 -8 -8 -8 -8 -8 -------- Run | Yrd Mat Min Exi Min Mat Gar Mat Gar Mat Gar Total Allies 7 | . . . . 3 . 3 . . . 1 Largest Group 3 | . . . . 3 3 3 3 . . 1 Highest-Rated Group 95 | . . . . 40 40 95 95 . . 25 Highest-Rated Ally 39 | . . . . 16 16 39 39 . . 25 Total Orders . | . . . . . . . . . . . Ally Attacks 96 | . . . . . 13 7 76 . . . Total Damage 1234 | . . . . . 97 39 1098 . . . Kills 16 | . . . . . 2 1 13 . . . Allies Corrupted . | . . . . . . . . . . . Allies Melted . | . . . . . . . . . . . Intel | -11 -10 -10 -10 -9 -8 -8 -8 -8 -8 -8 ------- Run | Yrd Mat Min Exi Min Mat Gar Mat Gar Mat Gar Robot Analysis Total 2 | . 2 . . . . . . . . . Derelict Logs Recovered 1 | . . 1 . . . . . . . . Drone Launches . | . . . . . . . . . . . Drone Recoveries . | . . . . . . . . . . . Exploration | -11 -10 -10 -10 -9 -8 -8 -8 -8 -8 -8 ------------- Run | Yrd Mat Min Exi Min Mat Gar Mat Gar Mat Gar Turns Passed 6903 | 41 263 140 428 436 273 1279 2631 455 808 149 Spaces Moved 4110 | 35 227 145 438 379 162 701 1267 238 432 86 Core 9 | 9 . . . . . . . . . . Treads . | . . . . . . . . . . . Legs . | . . . . . . . . . . . Wheels 4101 | 26 227 145 438 379 162 701 1267 238 432 86 Hover . | . . . . . . . . . . . Flight . | . . . . . . . . . . . Fastest Speed 50 | 50 80 80 80 110 110 115 115 130 145 145 Average Speed 119 | 72 80 80 96 110 122 122 125 142 145 145 Slowest Speed 160 | 80 80 80 110 110 125 160 145 145 145 145 Overloaded Moves . | . . . . . . . . . . . Propulsion Burnouts . | . . . . . . . . . . . Robots Hopped . | . . . . . . . . . . . Cave-ins Triggered . | . . . . . . . . . . . Exploration Rate (%) 48 | 3 59 40 89 79 23 77 97 33 25 13 Regions Visited 10 Branch Regions 3 Pre-discovered Areas 4 | . 1 2 1 . . . . . . . Known Exits Taken 4 | . 1 . . . 1 . 1 . 1 . Unknown Exits Taken 4 | 1 . 1 1 1 . . . . . . Scrap Searched 3 | . . . . 3 . . . . . . Spaces Dug 16 | . . . . . 1 1 3 5 4 2 Terrain Destroyed 136 | . . . . . 2 74 6 35 4 15 Melee 16 | . . . . . 1 1 3 5 4 2 Projectile 5 | . . . . . 1 1 3 . . . AOE 115 | . . . . . . 72 . 30 . 13 Terrain Rammed . | . . . . . . . . . . . Walls Destroyed . | . . . . . . . . . . . Machines Disabled . | . . . . . . . . . . . Actions | -11 -10 -10 -10 -9 -8 -8 -8 -8 -8 -8 --------- Run | Yrd Mat Min Exi Min Mat Gar Mat Gar Mat Gar Total 5509 | 50 265 154 444 397 213 949 2074 316 550 97 Wait 778 | . 2 1 . 11 26 30 581 44 81 2 Move 4100 | 34 226 144 437 378 161 700 1266 237 431 86 Hop . | . . . . . . . . . . . Pick Up 86 | 10 8 . 3 6 8 12 35 . 4 . Fast Attach 11 | . 1 1 1 . . 2 6 . . . Attach 37 | 6 . . . 1 4 5 19 1 1 . Detach 3 | . . . 1 . . 1 1 . . . Swap 51 | . 1 . 1 1 2 13 24 5 2 2 Drop 43 | . 5 1 1 . 1 9 23 2 1 . Fire 245 | . 22 7 . . 8 76 98 8 22 4 Melee 41 | . . . . . 3 4 12 11 8 3 Ram 1 | . . . . . . . 1 . . . Kick . | . . . . . . . . . . . Crush . | . . . . . . . . . . . Escape Stasis 32 | . . . . . . 24 . 8 . . Rewire 66 | . . . . . . 66 . . . . Trap 15 | . . . . . . 7 8 . . . Miscellaneous . | . . . . . . . . . . . Route ------- -11/Scrapyard -10/Materials (discovered 4 exits: [*Mat x2] / *Min x2) -10/Mines -10/Exiles -9/Mines -8/Materials -8/Garrison (discovered 2 exits: *Mat x2) -8/Materials (discovered 4 exits: [*Fac x3] / Gar) -8/Garrison -8/Materials -8/Garrison History --------- Turn | Location | Event 20 | -11/Scrapyard | Discovered new exit (range 15) 42 | -11/Scrapyard | Entered Materials 203 | -10/Materials | Discovered new exit (range 11) 256 | -10/Materials | Identified exit to Mines 300 | -10/Materials | Build established: Mutant 302 | -10/Materials | Discovered new exit (range 8) 305 | -10/Materials | Entered Mines 314 | -10/Mines | Learned location of Zion (-7) 319 | -10/Mines | Learned location of Storage (-9) 431 | -10/Mines | Assembled infested the area 433 | -10/Mines | A weapon hastily lodged in a ceiling crevice suddenly fell to the ground 442 | -10/Mines | Deemed a non-threat by the Exiles lab entrance 442 | -10/Mines | Discovered new exit (range 5) 445 | -10/Mines | Entered Exiles 466 | -10/Exiles | Met 8R-AWN 479 | -10/Exiles | Met EX-HEX 503 | -10/Exiles | Met EX-BIN 518 | -10/Exiles | Aligned with FarCom system 518 | -10/Exiles | Given EX-Vault access code 538 | -10/Exiles | Opened EX-Vault 545 | -10/Exiles | Found PSU Rigger 563 | -10/Exiles | Warned to stay clear of 0b10 Research branches 585 | -10/Exiles | Met EX-DEC 652 | -10/Exiles | Visited The Gauntlet 858 | -10/Exiles | Discovered new exit (range 14) 873 | -10/Exiles | Left Exiles lab with PSU Rigger 873 | -10/Exiles | Entered Mines 884 | -9/Mines | Met a Derelict shopkeep closing up shop 1052 | -9/Mines | Received a Rocket Launcher from a helpful Derelict 1071 | -9/Mines | Discovered new exit (range 4) 1203 | -9/Mines | Assisted by bots powering up and referring to "LRC-V3" 1309 | -9/Mines | Entered Materials 1309 | -8/Materials | Accompanied by 3 allies 1309 | -8/Materials | Evolved 4 slots: Utility x3, Weapon x1 1579 | -8/Materials | Identified exit to Garrison 1582 | -8/Materials | Entered Garrison 1582 | -8/Garrison | Accompanied by 1 ally 1609 | -8/Garrison | Phase Generator disabled 1739 | -8/Garrison | Triggered checkpoint 1834 | -8/Garrison | Garrison Relay disabled 1869 | -8/Garrison | Garrison Relay disabled 2010 | -8/Garrison | Triggered checkpoint 2065 | -8/Garrison | Lost 3 parts (1n1u1w) 2229 | -8/Garrison | Triggered checkpoint 2355 | -8/Garrison | Discovered new exit (range 5) 2375 | -8/Garrison | Triggered checkpoint 2403 | -8/Garrison | Garrison Relay disabled 2476 | -8/Garrison | Garrison Relay disabled 2499 | -8/Garrison | Build established: Scavenger-Tank 2787 | -8/Garrison | Discovered new exit (range 5) 2805 | -8/Garrison | Garrison Relay disabled 2816 | -8/Garrison | Triggered checkpoint 2861 | -8/Garrison | Entered Materials 2861 | -8/Materials | Accompanied by 3 allies 3093 | -8/Materials | Discovered new exit (range 11) 3661 | -8/Materials | First assault squad dispatched 3699 | -8/Materials | Discovered new exit (range 3) 4158 | -8/Materials | Build established: Skirmisher 4815 | -8/Materials | Garrison activated, responded to threat 5068 | -8/Materials | Lost 8 parts (1p4u3w) 5106 | -8/Materials | Core integrity fell below 50% 5346 | -8/Materials | Core integrity fell below 20% 5356 | -8/Materials | Build established: Mutant 5387 | -8/Materials | Lost 7 parts (1p1n1u4w) 5390 | -8/Materials | Destroyed 7 combat bots 5428 | -8/Materials | Discovered new exit (range 15) 5447 | -8/Materials | Garrison activated, responded to threat 5491 | -8/Materials | Identified exit to Garrison 5492 | -8/Materials | Entered Garrison 5560 | -8/Garrison | Triggered checkpoint 5586 | -8/Garrison | Garrison Relay disabled 5653 | -8/Garrison | Triggered checkpoint 5653 | -8/Garrison | Triggered checkpoint 5796 | -8/Garrison | Discovered new exit (range 10) 5947 | -8/Garrison | Entered Materials 6533 | -8/Materials | Garrison activated, responded to threat 6754 | -8/Materials | Identified exit to Garrison 6755 | -8/Materials | Entered Garrison 6790 | -8/Garrison | Phase Generator disabled 6851 | -8/Garrison | Rescued a captive Derelict 6899 | -8/Garrison | Garrison Relay disabled 6899 | -8/Garrison | Garrison Relay disabled 6904 | -8/Garrison | Destroyed by Y-45 Defender with Beam Rifle Last Messages --------------- >>Open(Door) Sealed Heavy Doors opened. PU-1CB(l): "WARLORD FOREVER!" Garrison Relay disabled. Relay Coupler [Grunt] tumbles out of relay unit. Relay Coupler [NC] tumbles out of relay unit. Relay Coupler [Heavy] tumbles out of relay unit. Relay Coupler [Sentry] tumbles out of relay unit. Garrison Relay disabled. Relay Coupler [NC] tumbles out of relay unit. Relay Coupler [Sentry] tumbles out of relay unit. Relay Coupler [NC] tumbles out of relay unit. Relay Coupler [Swarmer] tumbles out of relay unit. C-17 Slicer springs to life. PU-1CB(l) knocked back. Knocked back. PU-1CB(l) knocked back. Map ----- +----------------------------------------------------+ | | | | | ?????????????????????????????????????? | | ?????????????????????????????????????? | | ?????????????????????????????????????? | | ?????????????????????????????????????? | | ?????????????????????????????????????? | | ?????????????????????????????????????? | | ?????????????????????????????????????? | | ?????????????????????????????????????? | | ???????????"""""??#??????????????????? | | ???????????"""""# #??????????????????? | | ??????????? #??????????????????? | | ??????????? # #??????????????????? | | ??????????"" " ##?????????????????? | | ???????##? "c #?????????????????? | | ????????" " #?????????????????? | | ????????? ?" ! ! #?????????????????? | | ????????? " c!! #?????????????????? | | ?????????? # ! #?????????????????? | | ??????????? Y ??????????????????? | | ???????????#Y ????????????????????? | | ???????????# #?????????????????????? | | ???????????# #?????????????????????? | | ???????????## ##???###???????????????? | | ????????????#@#???##"###?????????????? | | ????????????# ##### ##????????????? | | ????????????#l " "#????????????? | | ????????????# ##### ##????????????? | | ????????????# #???### #?????????????? | | ????????????# ####### #?????????????? | | ????????##### ## #?????????????? | | ????????# ## #?????????????? | | ????????# ## #?????????????? | | ????????# ## #?????????????? | | ?????#### ## ?????????????? | | ?????#" ## ?????????????? | | ?????### ######?????????????? | | ??????## #??????????????????? | | ??????## #??????????????????? | | ??????## #??????????????????? | | ???????#" ### #??????????????????? | | ???????#### ###?# ######## #?????????? | | ??????????#####?# = #?????????? | | ????????????????# #########??????????? | | ??????????????### !##????????????????? | | ??????????????# =[ #????????????????? | | ??????????????###T###????????????????? | | ????????????????###??????????????????? | | ?????????????????????????????????????? | +----------------------------------------------------+ Best States ------------- Heat Dissipation 67 Energy Generation 16 Energy Capacity 525 Matter Stores 300 Matter Capacity 300 Sight Range 16 Robot Scan Range 15 Terrain Scan Density 10 ECM Strength 2 Corruption Block 8 Armor Coverage 600 Resistance: TH 10 Core Shielding 20 Power Shielding 66 Evasion (%) 50 Targeting Accuracy 8 Melee Accuracy 5 Target Analysis 5 Item Schematics ----------------- Hcp. Battery | -8/Materials | Scanalyzed Plasma Cutter | -8/Materials | Scanalyzed Arm. Huge Wheel | -8/Materials | Scanalyzed Robot Schematics ------------------ None Fabricated ------------ Nothing Alien Tech Used ----------------- None Achievements -------------- Fearless Challenges ------------ None Game ------ Seed TerrabombPhaseExtrapolator Manual? 0 Play Time 01:14:48 Cumulative 144.1 hours Start 2024.08.13 @ 03:04:25 End 2024.08.13 @ 04:18:44 Sessions 1 Manual Loads 0 Difficulty Rogue Special Mode None Game No. 138 Rogue 129 Adventurer 9 Explorer 0 Win Type - Total 0 Types 0/0/0/0/0/0/0/0/0 Lore% 53 Gallery% 62 Achievement% 49 Wizard Run 0 Options --------- Layout 1 ASCII 0 Keyboard 0 Movement Numpad Keybinds 0 Fullscreen 1 Font 24/Smallcaps Map View 50x35 Zoom Use 0% Tactical HUD 0 Map Filters NONE Filters NONE Steam 1 RUN: 24d67939-ecda-485e-a740-5da801c3a2f5